bitfinex-derivatives/quotes_BTCF0:USTF0_20250506
["timestamp","ask_amount","ask_price","bid_price","bid_amount"]
[1746566511564,0.0327,94708.0,94707.0,0.43576877]
[1746566511766,0.0327,94708.0,94707.0,0.51344877]
[1746566513967,0.0327,94708.0,94707.0,0.43576877]
[1746566514163,0.0327,94708.0,94707.0,0.19198067]
[1746566514164,0.2438859,94708.0,94707.0,0.19198067]
[1746566514363,0.2111948,94704.0,94703.0,0.07768]
[1746566514561,0.2112015,94701.0,94700.0,0.16133613]
[1746566515063,0.5667975,94701.0,94700.0,0.16133613]
[1746566515258,0.4947975,94701.0,94700.0,0.16133613]
[1746566516465,0.4957975,94701.0,94700.0,0.16133613]
[1746566518369,0.50628307,94701.0,94700.0,0.13398233]
[1746566518565,0.50628307,94701.0,94700.0,0.05636613]
[1746566518755,0.2112127,94696.0,94695.0,0.21370391]
[1746566518959,0.5720127,94696.0,94695.0,0.21370391]
[1746566519165,0.8556127,94696.0,94695.0,0.21370391]
[1746566519563,0.2112261,94690.0,94689.0,0.269113]
[1746566519768,0.2112327,94687.0,94678.0,0.0325]
[1746566520161,0.4948447,94687.0,94677.0,0.00965777]
[1746566520559,0.56771816,94687.0,94677.0,0.00965777]
[1746566521271,0.2082528,94678.0,94677.0,0.00158433]
[1746566521567,0.5690528,94678.0,94677.0,0.00158433]
[1746566521774,0.2112796,94666.0,94665.0,0.0317]
[1746566521964,0.2112863,94663.0,94662.0,0.42643236]
[1746566523165,0.2112863,94663.0,94662.0,0.21514386]
[1746566523364,0.2112863,94663.0,94662.0,0.21714386]
[1746566523567,0.3169263,94663.0,94662.0,0.002]
[1746566523869,0.2103019,94656.0,94655.0,0.00105646]
[1746566524071,0.5711019,94656.0,94655.0,0.00105646]
[1746566524269,0.6767499,94656.0,94655.0,0.00105646]
[1746566524770,0.7402499,94656.0,94655.0,0.00105646]
[1746566525182,0.9182499,94656.0,94655.0,0.00105646]
[1746566525673,0.9182499,94656.0,94655.0,0.00305646]
[1746566526362,0.9212499,94656.0,94655.0,0.00205646]
[1746566526760,0.9182499,94656.0,94655.0,0.00105646]
[1746566526966,0.9222499,94656.0,94655.0,0.00205646]
[1746566527269,0.9182499,94656.0,94655.0,0.00105646]
[1746566529077,0.8126019,94656.0,94655.0,0.00105646]
[1746566534078,0.9182499,94656.0,94655.0,0.00105646]
[1746566535177,0.707948,94656.0,94650.0,0.0317]
[1746566535380,0.5721131,94651.0,94650.0,0.0317]
[1746566535581,0.6497931,94651.0,94650.0,0.0317]
[1746566536178,0.7143931,94651.0,94650.0,0.0317]
[1746566536580,0.7183931,94651.0,94650.0,0.0327]
[1746566549992,0.7143931,94651.0,94650.0,0.0317]
[1746566550186,0.7173931,94651.0,94650.0,0.0327]
[1746566553277,0.7163931,94651.0,94650.0,0.0317]
[1746566554393,0.6387131,94651.0,94650.0,0.0317]
[1746566554593,0.7163531,94651.0,94650.0,0.0317]
[1746566555091,0.7143531,94651.0,94650.0,0.0317]
[1746566555391,0.7193531,94651.0,94650.0,0.0327]
[1746566556992,0.2113287,94644.0,94643.0,0.0306]
[1746566557192,0.5721287,94644.0,94643.0,0.0306]
[1746566557791,0.6039287,94644.0,94643.0,0.0306]
[1746566558087,0.6357287,94644.0,94643.0,0.0306]
[1746566558785,0.6397287,94644.0,94643.0,0.0316]
[1746566558987,0.65008281,94644.0,94643.0,0.0316]
[1746566560183,0.65008281,94644.0,94643.0,0.0644]
[1746566566493,0.65008281,94644.0,94643.0,0.0338]
[1746566566691,0.0528383,94633.0,94630.0,0.0301]
[1746566566899,0.0528383,94633.0,94630.0,0.03808479]
[1746566566900,0.5721578,94631.0,94630.0,0.03808479]
[1746566567198,0.5721578,94631.0,94630.0,0.19560552]
[1746566567394,0.6042578,94631.0,94630.0,0.19560552]
[1746566568687,0.6052578,94631.0,94630.0,0.19560552]
[1746566570699,0.6042578,94631.0,94630.0,0.19560552]
[1746566570894,0.6062578,94631.0,94630.0,0.19660552]
[1746566571300,0.6042578,94631.0,94630.0,0.19560552]
[1746566571498,0.6062578,94631.0,94630.0,0.19660552]
[1746566573900,0.6052578,94631.0,94630.0,0.18862073]
[1746566574500,0.6042578,94631.0,94630.0,0.18762073]
[1746566574692,0.6072578,94631.0,94630.0,0.18862073]
[1746566575300,0.6391578,94631.0,94630.0,0.18862073]
[1746566576300,0.6391578,94631.0,94630.0,0.25132073]
[1746566576301,0.7167578,94631.0,94630.0,0.25132073]
[1746566586609,0.7167578,94631.0,94630.0,0.22072073]
[1746566590220,0.7167578,94631.0,94630.0,0.0632]
[1746566590412,0.7167578,94631.0,94630.0,0.001]
[1746566603922,0.6391578,94631.0,94630.0,0.001]
[1746566604121,0.7167178,94631.0,94630.0,0.001]
[1746566604322,0.6391578,94631.0,94630.0,0.001]
[1746566604515,0.7167178,94631.0,94630.0,0.001]
[1746566613931,0.6391578,94631.0,94630.0,0.001]
[1746566614121,0.7167178,94631.0,94630.0,0.001]
[1746566624533,0.6391578,94631.0,94630.0,0.001]
[1746566624735,0.7166778,94631.0,94630.0,0.001]
[1746566626740,0.3558778,94631.0,94630.0,0.001]
[1746566626941,0.7166778,94631.0,94630.0,0.001]
[1746566627847,0.3558778,94631.0,94630.0,0.001]
[1746566628139,0.7166778,94631.0,94630.0,0.001]
[1746566628844,0.3558778,94631.0,94630.0,0.001]
[1746566629142,0.7166778,94631.0,94630.0,0.001]
[1746566629338,0.3558778,94631.0,94630.0,0.001]
[1746566629542,0.7166778,94631.0,94630.0,0.001]
[1746566629738,0.3558778,94631.0,94630.0,0.001]
[1746566629937,0.7166778,94631.0,94630.0,0.001]
[1746566636047,0.3558778,94631.0,94630.0,0.001]
[1746566636252,0.7166378,94631.0,94630.0,0.001]
[1746566637751,0.2114091,94608.0,94600.0,0.105]
[1746566637945,0.2888891,94608.0,94606.0,0.10858]
[1746566638146,0.2888891,94608.0,94607.0,0.19063505]
[1746566638349,0.2888891,94608.0,94607.0,0.19842239]
[1746566638550,0.2888891,94608.0,94607.0,0.55922239]
[1746566638852,0.2888891,94608.0,94607.0,0.77063379]
[1746566639053,0.2888891,94608.0,94607.0,0.59122239]
[1746566639254,0.2888891,94608.0,94607.0,0.62322239]
[1746566639448,0.2888891,94608.0,94607.0,0.70070239]
[1746566639648,0.2888891,94608.0,94607.0,0.62322239]
[1746566639843,0.2888891,94608.0,94607.0,0.70070239]
[1746566640855,0.2898891,94608.0,94607.0,0.70270239]
[1746566642453,0.2898891,94608.0,94607.0,0.76270239]
[1746566642655,0.2898891,94608.0,94607.0,0.70270239]
[1746566643445,0.2898891,94608.0,94607.0,0.77270239]
[1746566643651,0.2898891,94608.0,94607.0,0.70270239]
[1746566644448,0.2898891,94608.0,94607.0,0.75270239]
[1746566644654,0.2898891,94608.0,94607.0,0.70270239]
[1746566645259,0.2898891,94608.0,94607.0,0.91411379]
[1746566647967,0.2898891,94608.0,94607.0,0.55331379]
[1746566648262,0.2898891,94608.0,94607.0,0.91411379]
[1746566649764,0.2898891,94608.0,94607.0,0.34190239]
[1746566649961,0.2898891,94608.0,94607.0,0.55331379]
[1746566651358,0.2124091,94608.0,94607.0,0.55331379]
[1746566651667,0.2898891,94608.0,94607.0,0.55331379]
[1746566653158,0.2898891,94608.0,94607.0,0.34190239]
[1746566658866,0.2898891,94608.0,94607.0,0.55331379]
[1746566659065,0.2898891,94608.0,94607.0,0.34190239]
[1746566659672,0.2898891,94608.0,94607.0,0.55331379]
[1746566660167,0.2898891,94608.0,94607.0,0.34190239]
[1746566660368,0.28972505,94608.0,94607.0,0.34190239]
[1746566662463,0.21224505,94608.0,94607.0,0.34190239]
[1746566662667,0.28968505,94608.0,94607.0,0.34190239]
[1746566664873,0.28968505,94608.0,94607.0,0.50348314]
[1746566665769,0.28968505,94608.0,94607.0,0.71489454]
[1746566667871,0.28968505,94608.0,94607.0,0.52221379]
[1746566672175,0.001,94608.0,94607.0,0.52221379]
[1746566672375,0.001,94608.0,94607.0,1.03301379]
[1746566672679,0.001,94608.0,94607.0,0.88301379]
[1746566673078,0.001,94608.0,94607.0,0.91581379]
[1746566673482,0.0328,94616.0,94613.0,0.0528489]
[1746566673685,0.2113922,94616.0,94615.0,0.2642413]
[1746566673879,0.2113922,94616.0,94615.0,0.3170891]
[1746566674082,0.2113922,94616.0,94615.0,0.57085391]
[1746566675188,0.2123922,94616.0,94615.0,0.57185391]
[1746566677789,0.2123922,94616.0,94615.0,0.93265391]
[1746566678293,0.001,94616.0,94615.0,0.93265391]
[1746566678689,0.0528412,94628.0,94615.0,0.84556481]
[1746566678892,0.2424683,94628.0,94627.0,0.5721667]
[1746566679092,0.2113683,94628.0,94627.0,0.6495667]
[1746566679287,0.0311,94629.0,94628.0,0.2113645]
[1746566679488,0.2424623,94629.0,94628.0,0.2735645]
[1746566679688,0.2424623,94629.0,94628.0,0.43226656]
[1746566681294,0.2113623,94629.0,94628.0,0.43226656]
[1746566682689,0.2123623,94629.0,94628.0,0.44367256]
[1746566683095,0.2123623,94629.0,94628.0,0.54934855]
[1746566683697,0.2113623,94629.0,94628.0,0.54834855]
[1746566683996,0.2113623,94629.0,94628.0,0.44367256]
[1746566685895,0.2113623,94629.0,94628.0,0.45367256]
[1746566688394,0.2113623,94629.0,94628.0,1.95367256]
[1746566690697,0.2417623,94629.0,94628.0,1.95367256]
[1746566694103,0.2417623,94629.0,94628.0,2.05934855]
[1746566696102,0.2417623,94629.0,94628.0,1.95367256]
[1746566696395,0.2417623,94629.0,94628.0,2.05934855]
[1746566696802,0.2417623,94629.0,94628.0,2.04934855]
[1746566698204,0.2417623,94629.0,94628.0,1.94367256]
[1746566698504,0.2417623,94629.0,94628.0,2.30447256]
[1746566699106,0.2427623,94629.0,94628.0,2.30347256]
[1746566699611,0.2417623,94629.0,94628.0,2.28147256]
[1746566699907,0.2427623,94629.0,94628.0,2.28147256]
[1746566701005,0.2427623,94629.0,94628.0,1.66910806]
[1746566701210,0.2735623,94629.0,94628.0,0.37006656]
[1746566702302,0.2735623,94629.0,94628.0,0.38006656]
[1746566702501,0.2735623,94629.0,94628.0,0.38041854]
[1746566704708,0.2735623,94629.0,94628.0,0.37006656]
[1746566705410,0.2735623,94629.0,94628.0,0.38006656]
[1746566705804,0.2735623,94629.0,94628.0,0.37006656]
[1746566706411,0.2735623,94629.0,94628.0,0.38006656]
[1746566709312,0.2735623,94629.0,94628.0,0.37006656]
[1746566710715,0.2735623,94629.0,94628.0,0.38006656]
[1746566711213,0.2735623,94629.0,94628.0,0.37006656]
[1746566711814,0.2735623,94629.0,94628.0,0.38006656]
[1746566712014,0.2735623,94629.0,94628.0,0.45742656]
[1746566713713,0.2735623,94629.0,94628.0,0.44742656]
[1746566713913,0.2735623,94629.0,94628.0,0.45742656]
[1746566714317,0.2735623,94629.0,94628.0,0.44742656]
[1746566716113,0.2735623,94629.0,94628.0,0.45742656]
[1746566716609,0.2725623,94629.0,94628.0,0.45742656]
[1746566716908,0.2735623,94629.0,94628.0,0.45742656]
[1746566719619,0.2735623,94629.0,94628.0,0.44742656]
[1746566721512,0.2735623,94629.0,94628.0,0.45742656]
[1746566723020,0.2735623,94629.0,94628.0,0.44742656]
[1746566723215,0.2735623,94629.0,94628.0,0.69475]
[1746566723811,0.3054623,94629.0,94628.0,0.69475]
[1746566725922,0.2746623,94629.0,94628.0,0.69475]
[1746566727212,0.2736623,94629.0,94628.0,0.69475]
[1746566727412,0.2746623,94629.0,94628.0,0.69475]
[1746566727809,0.2736623,94629.0,94628.0,0.69475]
[1746566728019,0.2746623,94629.0,94628.0,0.69475]
[1746566728421,0.2736623,94629.0,94628.0,0.69475]
[1746566728625,0.2746623,94629.0,94628.0,0.70475]
[1746566728813,0.2746623,94629.0,94628.0,0.69475]
[1746566736722,0.2746623,94629.0,94628.0,0.3743255]
[1746566736929,0.2746623,94629.0,94628.0,0.4516455]
[1746566737128,0.2746623,94629.0,94628.0,0.66301]
[1746566737327,0.2746623,94629.0,94628.0,0.69351]
[1746566738029,0.2736623,94629.0,94628.0,0.69351]
[1746566738227,0.2746623,94629.0,94628.0,0.69351]
[1746566738930,0.2746623,94629.0,94628.0,0.47788656]
[1746566739918,0.2736623,94629.0,94628.0,0.47888656]
[1746566740123,0.2756623,94629.0,94628.0,0.47888656]
[1746566744133,0.2756623,94629.0,94628.0,0.40156656]
[1746566744431,0.2756623,94629.0,94628.0,0.47888656]
[1746566771355,0.2756623,94629.0,94628.0,0.50908656]
[1746566782963,0.2756623,94629.0,94628.0,0.72471]
[1746566786763,0.2756623,94629.0,94628.0,0.50908656]
[1746566787363,0.2756623,94629.0,94628.0,0.001]
[1746566810780,0.27777581,94629.0,94628.0,0.001]
[1746566896759,0.06641351,94629.0,94625.0,0.0307]
[1746566896956,0.2103689,94626.0,94625.0,0.0307]
[1746566897156,0.21248248,94626.0,94625.0,0.0307]
[1746566897359,0.21248248,94626.0,94625.0,0.18949406]
[1746566898764,0.27538248,94626.0,94625.0,0.19049406]
[1746566899059,0.27538248,94626.0,94625.0,0.18949406]
[1746566899266,0.27638248,94626.0,94625.0,0.19049406]
[1746566913474,0.27638248,94626.0,94625.0,0.15979406]
[1746566913680,0.27638248,94626.0,94625.0,0.001]
[1746566914071,0.35354248,94626.0,94625.0,0.001]
[1746566923082,0.71434248,94626.0,94625.0,0.001]
[1746566931991,0.211389,94617.0,94616.0,0.0314]
[1746566932299,0.572189,94617.0,94616.0,0.0314]
[1746566933186,0.275089,94617.0,94616.0,0.0314]
[1746566933389,0.635889,94617.0,94616.0,0.0314]
[1746566935291,0.636889,94617.0,94616.0,0.0324]
[1746566941306,0.636889,94617.0,94616.0,0.0631]
[1746566948403,0.637889,94617.0,94616.0,0.0621]
[1746566955732,0.2114091,94608.0,94607.0,0.00937284]
[1746566955927,0.6503691,94608.0,94607.0,0.0015855]
[1746566956632,0.7155691,94608.0,94607.0,0.0015855]
[1746566957130,0.7165691,94608.0,94607.0,0.0015855]
[1746566959321,0.7165691,94608.0,94595.0,3e-08]
[1746566959322,0.211436,94596.0,94595.0,3e-08]
[1746566959519,0.572236,94596.0,94595.0,3e-08]
[1746566960426,0.637336,94596.0,94595.0,3e-08]
[1746566961029,0.2114672,94582.0,94581.0,0.21562344]
[1746566961229,0.2114874,94573.0,94562.0,0.07716]
[1746566961426,0.5722874,94573.0,94566.0,0.0648]
[1746566961626,0.5722874,94573.0,94568.0,0.0316]
[1746566961824,0.5722874,94573.0,94558.0,0.3608]
[1746566962122,0.5722874,94573.0,94554.0,0.00158628]
[1746566962123,0.2114986,94568.0,94554.0,0.00158628]
[1746566962327,0.2900986,94568.0,94555.0,0.0632]
[1746566962532,0.2900986,94568.0,94540.0,0.01038748]
[1746566962533,1.208704,94568.0,94531.0,0.3608]
[1746566962829,0.2115634,94539.0,94538.0,0.34776182]
[1746566963033,0.2902834,94539.0,94538.0,0.34776182]
[1746566963227,0.39605941,94539.0,94538.0,0.34776182]
[1746566963427,0.2115701,94536.0,94526.0,0.0632]
[1746566963629,0.22201253,94536.0,94535.0,1e-07]
[1746566963827,0.32779254,94536.0,94535.0,1e-07]
[1746566965127,0.39611011,94536.0,94535.0,1e-07]
[1746566965424,0.64611011,94536.0,94535.0,1e-07]
[1746566965630,0.2116373,94506.0,94505.0,0.00105814]
[1746566965832,0.2920373,94506.0,94505.0,0.00105814]
[1746566966039,0.2920373,94506.0,94505.0,0.15919516]
[1746566967132,0.2920373,94506.0,94505.0,0.19019516]
[1746566967430,0.2930373,94506.0,94505.0,0.40183466]
[1746566967824,0.0529075,94510.0,94505.0,0.40183466]
[1746566967825,0.2919772,94519.0,94518.0,0.2644977]
[1746566968029,0.2919772,94519.0,94505.0,0.70600715]
[1746566968030,0.2645458,94508.0,94507.0,0.2645307]
[1746566968433,0.2645458,94508.0,94507.0,0.37046305]
[1746566968636,0.2645458,94508.0,94507.0,0.40296305]
[1746566969539,0.2655458,94508.0,94507.0,0.40296305]
[1746566970240,0.2645458,94508.0,94507.0,0.40296305]
[1746566970438,0.2655458,94508.0,94507.0,0.40396305]
[1746566973031,0.2126373,94508.0,94507.0,0.40396305]
[1746566978040,0.2126373,94508.0,94507.0,0.43716305]
[1746566979634,0.2126373,94508.0,94507.0,0.43616305]
[1746566979635,0.2116373,94508.0,94507.0,0.43616305]
[1746566979835,0.2645331,94514.0,94513.0,0.211614]
[1746566980037,0.4136965,94529.0,94513.0,0.211614]
[1746566980038,0.3608,94573.0,94513.0,0.9008]
[1746566980340,0.00211519,94554.0,94537.0,0.3608]
[1746566980542,0.08172,94553.0,94538.0,0.0605]
[1746566980742,0.2115583,94542.0,94541.0,0.2644456]
[1746566980935,0.2115634,94540.0,94539.0,0.2115614]
[1746566981248,0.2115634,94540.0,94539.0,0.39983278]
[1746566983846,0.2145634,94540.0,94539.0,0.40083278]
[1746566985746,0.2145634,94540.0,94539.0,0.2427634]
[1746566986646,0.2145634,94540.0,94539.0,0.0312]
[1746566987538,0.2145634,94540.0,94539.0,0.2427634]
[1746566991937,0.2145634,94540.0,94539.0,0.2751634]
[1746566994039,0.2145634,94540.0,94539.0,0.9967634]
[1746566994845,0.2145612,94540.0,94539.0,1.0267634]
[1746566995035,0.2145612,94540.0,94539.0,0.9967634]
[1746566996653,0.2166767,94540.0,94539.0,0.9967634]
[1746567003943,0.0051155,94540.0,94539.0,0.9967634]
[1746567004654,0.0051155,94540.0,94539.0,1.156079]
[1746567010341,0.0051155,94540.0,94539.0,1.196079]
[1746567014656,0.0051155,94540.0,94539.0,1.166079]
[1746567023766,0.0051155,94540.0,94539.0,1.196079]
[1746567030574,0.0051155,94540.0,94539.0,1.166079]
[1746567033070,0.0051155,94540.0,94539.0,1.246879]
[1746567040869,0.0051155,94540.0,94539.0,1.456879]
[1746567041172,0.0307,94544.0,94543.0,0.2115545]
[1746567041373,0.0307,94544.0,94543.0,0.3615545]
[1746567041761,0.0307,94544.0,94543.0,0.37076911]
[1746567041963,0.0307,94544.0,94543.0,0.43606911]
[1746567042479,0.0307,94544.0,94543.0,0.43706911]
[1746567042767,0.0347,94544.0,94543.0,0.43706911]
[1746567043674,0.0347,94544.0,94543.0,0.59706911]
[1746567044373,0.0347,94544.0,94543.0,0.43706911]
[1746567044569,0.0347,94544.0,94543.0,0.56706911]
[1746567044766,0.0347,94544.0,94543.0,0.43706911]
[1746567044970,0.0347,94544.0,94543.0,0.56706911]
[1746567045776,0.0347,94544.0,94543.0,0.43706911]
[1746567045977,0.0347,94544.0,94543.0,0.56706911]
[1746567046770,0.0347,94544.0,94543.0,0.43706911]
[1746567046971,0.2115306,94554.0,94545.0,0.0528874]
[1746567047278,0.2115306,94554.0,94543.0,0.37551461]
[1746567047279,0.07968,94553.0,94552.0,0.2115343]
[1746567047470,0.10992,94557.0,94554.0,0.2115299]
[1746567047670,0.3214453,94557.0,94554.0,0.2115299]
[1746567047973,0.2115255,94556.0,94554.0,0.2115299]
[1746567048175,0.2115255,94556.0,94554.0,0.2769299]
[1746567048375,0.2457276,94555.0,94554.0,0.43502229]
[1746567049679,0.2457276,94555.0,94554.0,0.43702229]
[1746567050279,0.2457276,94555.0,94554.0,0.43602229]
[1746567052376,0.2457276,94555.0,94554.0,0.43502229]
[1746567052875,0.2457276,94555.0,94554.0,0.58502229]
[1746567053774,0.0015,94555.0,94554.0,0.58502229]
[1746567054377,0.0015,94555.0,94554.0,0.66450229]
[1746567054978,0.0015,94555.0,94554.0,0.51450229]
[1746567055277,0.0015,94555.0,94554.0,0.67450229]
[1746567055679,0.0015,94555.0,94554.0,0.68260315]
[1746567056670,0.0324,94555.0,94554.0,0.68260315]
[1746567057483,0.0015,94555.0,94554.0,0.68260315]
[1746567057684,0.0015,94555.0,94554.0,1.04340315]
[1746567060089,0.0315,94555.0,94554.0,1.04340315]
[1746567061475,0.0315,94555.0,94554.0,0.88340315]
[1746567070179,0.0329,94566.0,94565.0,0.2115053]
[1746567070483,0.3239645,94566.0,94565.0,0.5723053]
[1746567071485,0.3239645,94566.0,94565.0,0.6031053]
[1746567071987,0.2444045,94566.0,94565.0,0.6031053]
[1746567073090,0.3099045,94566.0,94565.0,0.6031053]
[1746567073886,0.3099045,94566.0,94565.0,0.6137977]
[1746567074684,0.3099045,94566.0,94565.0,0.6439977]
[1746567076284,0.2780045,94566.0,94565.0,0.6439977]
[1746567077693,0.0665,94566.0,94565.0,0.6439977]
[1746567077893,0.278003,94566.0,94565.0,0.6439977]
[1746567079191,0.0348,94566.0,94565.0,0.6439977]
[1746567082982,0.0348,94566.0,94565.0,0.80182251]
[1746567085089,0.0348,94566.0,94565.0,1.16262251]
[1746567085700,0.004,94566.0,94565.0,1.16262251]
[1746567088588,0.215503,94566.0,94565.0,1.16262251]
[1746567088987,0.004,94566.0,94565.0,1.16262251]
[1746567089193,0.215503,94566.0,94565.0,1.16262251]
[1746567089389,0.004,94566.0,94565.0,1.16262251]
[1746567090005,0.215503,94566.0,94565.0,1.16262251]
[1746567093585,0.248403,94566.0,94565.0,1.16262251]
[1746567097710,0.215503,94566.0,94565.0,1.16262251]
[1746567100110,0.247903,94566.0,94565.0,1.16262251]
[1746567104122,0.247903,94566.0,94565.0,0.44102251]
[1746567104324,0.247903,94566.0,94565.0,1.16262251]
[1746567106824,0.2114841,94578.0,94577.0,0.2114717]
[1746567107027,0.2114841,94578.0,94577.0,0.5722717]
[1746567107227,0.2435841,94578.0,94577.0,0.73127196]
[1746567107524,0.2114841,94578.0,94577.0,0.93527196]
[1746567109026,0.2154841,94578.0,94577.0,0.93527196]
[1746567109921,0.2154841,94578.0,94577.0,0.79527196]
[1746567110121,0.2154841,94578.0,94577.0,0.93527196]
[1746567110423,0.2144841,94578.0,94577.0,0.93527196]
[1746567110822,0.2144841,94578.0,94577.0,0.79527196]
[1746567111022,0.2144841,94578.0,94577.0,0.92527196]
[1746567118026,0.2468841,94578.0,94577.0,0.92527196]
[1746567118227,0.2144841,94578.0,94577.0,0.92527196]
[1746567121634,0.2144841,94578.0,94577.0,0.79527196]
[1746567122034,0.2144841,94578.0,94577.0,0.94527196]
[1746567125733,0.2144841,94578.0,94577.0,2.44527196]
[1746567129130,0.2144841,94578.0,94577.0,2.08447196]
[1746567129441,0.2144841,94578.0,94577.0,2.65607196]
[1746567129647,0.2144841,94578.0,94577.0,2.81607196]
[1746567130937,0.003,94578.0,94577.0,2.81607196]
[1746567131439,0.003,94578.0,94577.0,2.65607196]
[1746567131642,0.003,94578.0,94577.0,2.79607196]
[1746567131836,0.003,94578.0,94577.0,2.78607196]
[1746567132239,0.2144762,94578.0,94577.0,2.78607196]
[1746567132740,0.2144762,94578.0,94577.0,1.28607196]
[1746567134137,0.2144762,94578.0,94577.0,1.15607196]
[1746567134328,0.2144762,94578.0,94577.0,1.28607196]
[1746567135236,0.003,94578.0,94577.0,1.28607196]
[1746567136036,0.0348,94578.0,94577.0,1.28607196]
[1746567136641,0.2462762,94578.0,94577.0,1.28607196]
[1746567137334,0.2144762,94578.0,94577.0,1.28607196]
[1746567139544,0.2144762,94578.0,94577.0,1.44779316]
[1746567141247,0.2144762,94578.0,94577.0,1.52723316]
[1746567142338,0.2451762,94578.0,94577.0,1.52723316]
[1746567144537,0.2451762,94578.0,94577.0,1.36551196]
[1746567147049,0.2451762,94578.0,94577.0,1.23551196]
[1746567147352,0.2451762,94578.0,94577.0,1.39551196]
[1746567148751,0.2451762,94578.0,94577.0,1.18404026]
[1746567148951,0.2451762,94578.0,94577.0,1.39551866]
[1746567151358,0.2451762,94578.0,94577.0,1.55731816]
[1746567153245,0.2451762,94578.0,94577.0,1.18583976]
[1746567153855,0.2451762,94578.0,94577.0,1.39731816]
[1746567155956,0.0337,94578.0,94577.0,1.54731816]
[1746567156150,0.2451762,94578.0,94577.0,1.54731816]
[1746567156350,0.2451762,94578.0,94577.0,1.39731816]
[1746567156551,0.2421762,94578.0,94577.0,1.39731816]
[1746567156747,0.2431762,94578.0,94577.0,1.39731816]
[1746567159353,0.2431762,94578.0,94577.0,1.23551866]
[1746567159962,0.2431762,94578.0,94577.0,0.51391866]
[1746567160155,0.2431762,94578.0,94577.0,1.23551866]
[1746567160664,0.2431762,94578.0,94577.0,1.15607866]
[1746567160963,0.2431762,94578.0,94577.0,1.23551866]
[1746567164064,0.2431762,94578.0,94577.0,1.23535866]
[1746567167858,0.2431762,94578.0,94577.0,1.15607866]
[1746567168061,0.2431762,94578.0,94577.0,1.23535866]
[1746567173673,0.2431762,94578.0,94577.0,1.39715816]
[1746567180369,0.0317,94578.0,94577.0,1.39715816]
[1746567180673,0.2431762,94578.0,94577.0,0.67555816]
[1746567180976,0.2431762,94578.0,94577.0,1.39715816]
[1746567182176,0.2431762,94578.0,94577.0,1.23535866]
[1746567183077,0.0317,94578.0,94577.0,1.23535866]
[1746567183269,0.2431762,94578.0,94577.0,1.23535866]
[1746567185179,0.0317,94578.0,94577.0,1.23535866]
[1746567191783,0.2431762,94578.0,94577.0,1.23535866]
[1746567192285,0.0317,94578.0,94577.0,1.23535866]
[1746567194188,0.0317,94578.0,94577.0,0.51375866]
[1746567194385,0.0317,94578.0,94577.0,1.23535866]
[1746567195185,0.2431762,94578.0,94577.0,1.23535866]
[1746567195482,0.0317,94578.0,94577.0,1.23535866]
[1746567197184,0.2431762,94578.0,94577.0,1.23535866]
[1746567199482,0.2431762,94578.0,94577.0,0.51375866]
[1746567199687,0.2431762,94578.0,94577.0,1.23535866]
[1746567203378,0.0317,94578.0,94577.0,1.23535866]
[1746567204182,0.2431762,94578.0,94577.0,1.23535866]
[1746567204383,0.2431762,94578.0,94577.0,1.20335866]
[1746567204689,0.2431762,94578.0,94577.0,1.36518077]
[1746567204890,0.2431762,94578.0,94577.0,1.39598077]
[1746567210793,0.2431762,94578.0,94577.0,1.23415866]
[1746567213396,0.2431762,94578.0,94577.0,0.51255866]
[1746567213697,0.2431762,94578.0,94577.0,1.23415866]
[1746567215795,0.2431762,94578.0,94577.0,0.51255866]
[1746567215998,0.2431762,94578.0,94577.0,1.23415866]
[1746567216296,0.2431762,94578.0,94577.0,0.51255866]
[1746567216495,0.2431762,94578.0,94577.0,1.23415866]
[1746567217391,0.0317,94578.0,94577.0,1.23415866]
[1746567217899,0.2431762,94578.0,94577.0,1.23415866]
[1746567219284,0.0317,94578.0,94577.0,1.23415866]
[1746567221092,0.0317,94578.0,94577.0,0.51255866]
[1746567221299,0.0317,94578.0,94577.0,1.23415866]
[1746567221601,0.0317,94578.0,94577.0,0.51255866]
[1746567221799,0.0317,94578.0,94577.0,1.23415866]
[1746567225000,0.0317,94578.0,94577.0,1.23323866]
[1746567231507,0.0317,94578.0,94577.0,0.51163866]
[1746567231705,0.0317,94578.0,94577.0,1.23323866]
[1746567232608,0.0317,94578.0,94577.0,0.51163866]
[1746567232808,0.0317,94578.0,94577.0,1.23323866]
[1746567238805,0.0317,94578.0,94577.0,0.51163866]
[1746567239005,0.0317,94578.0,94577.0,1.23323866]
[1746567239820,0.0317,94578.0,94577.0,0.87243866]
[1746567240024,0.0317,94578.0,94577.0,1.23323866]
[1746567241124,0.0317,94578.0,94577.0,0.51163866]
[1746567241325,0.0317,94578.0,94577.0,1.23323866]
[1746567246521,0.0317,94578.0,94577.0,0.51163866]
[1746567246826,0.0317,94578.0,94577.0,1.23323866]
[1746567251130,0.0317,94578.0,94577.0,1.15487866]
[1746567251331,0.0317,94578.0,94577.0,1.23323866]
[1746567254231,0.0317,94578.0,94577.0,0.51163866]
[1746567254426,0.0317,94578.0,94577.0,1.23323866]
[1746567258340,0.0317,94578.0,94577.0,1.25323866]
[1746567261624,0.0317,94578.0,94577.0,1.23323866]
[1746567262237,0.0317,94578.0,94577.0,0.51163866]
[1746567262438,0.0317,94578.0,94577.0,1.23323866]
[1746567266434,0.0317,94578.0,94577.0,0.51163866]
[1746567266639,0.0317,94578.0,94577.0,1.23323866]
[1746567269342,0.0317,94578.0,94577.0,1.44905225]
[1746567273340,0.0317,94578.0,94577.0,1.37069225]
[1746567273535,0.0317,94578.0,94577.0,1.44873225]
[1746567283748,0.0317,94578.0,94577.0,1.23291866]
[1746567294151,0.0317,94578.0,94577.0,0.51131866]
[1746567294349,0.0317,94578.0,94577.0,1.23291866]
[1746567306458,0.0317,94578.0,94577.0,1.44867098]
[1746567307164,0.0317,94578.0,94577.0,0.72707098]
[1746567307460,0.0317,94578.0,94577.0,1.44867098]
[1746567308256,0.0317,94578.0,94577.0,1.08787098]
[1746567308457,0.0317,94578.0,94577.0,1.44867098]
[1746567314160,0.0317,94578.0,94577.0,1.23291866]
[1746567327070,0.0317,94578.0,94577.0,0.51131866]
[1746567327274,0.0317,94578.0,94577.0,1.23291866]
[1746567335487,0.0317,94578.0,94577.0,0.51131866]
[1746567335787,0.0317,94578.0,94577.0,1.23291866]
[1746567336179,0.001,94578.0,94577.0,1.23291866]
[1746567339892,0.001,94578.0,94577.0,0.51131866]
[1746567340092,0.001,94578.0,94577.0,1.23291866]
[1746567341687,0.001,94578.0,94577.0,0.87211866]
[1746567341894,0.001,94578.0,94577.0,1.23291866]
[1746567343085,0.001,94578.0,94577.0,0.51131866]
[1746567343286,0.001,94578.0,94577.0,1.23291866]
[1746567345286,0.001,94578.0,94577.0,0.51131866]
[1746567345595,0.001,94578.0,94577.0,1.23291866]